Cogmind - Beta 17 @@@ ROGUE MODE // 2026.07.07 @ 21:23:43 Player: flowerfeast Result: Destroyed by as-86474 with Assembled Heavy Rifle Performance ------------- Evolutions (0) 0 Regions Visited (0) 0 Robots Destroyed (0) 0 Value Destroyed (0) 0 Prototype IDs (0) 0 Alien Tech Used (0) 0 Bonus (0) 0 TOTAL SCORE: 0 Bonus ------- None Cogmind --------- Core Integrity 0/250 Matter 265/300 Energy 250/250 System Corruption 3% Temperature Cool (60) Movement Treading (160) Location -11/Scrapyard Parts ------- > --- POWER (1) -------- Ion Engine > --- PROPULSION (2) --- Light Treads > --- UTILITY (2) ------ Small Storage Unit > --- WEAPON (2) ------- Small Laser > --- INVENTORY (8) ---- (None) Peak State ------------ > --- POWER ------------ Ion Engine > --- PROPULSION ------- Aluminum Leg Aluminum Leg > --- UTILITY ---------- Small Storage Unit > --- WEAPON ----------- Small Laser Small Laser > --- INVENTORY -------- Ion Engine EM Pulse Gun [Rating: 6] Favorites ----------- Power Ion Engine Engine Ion Engine Propulsion Aluminum Leg Treads Light Treads Leg Aluminum Leg Utility Small Storage Unit Storage Small Storage Unit Weapon Small Laser Energy Gun Small Laser Build | -11 ------- Run | Yrd Slots Evolved . | . Power . | . Propulsion . | . Utility . | . Weapon . | . Parts Attached 10 | 10 Power 2 | 2 Engine 2 | 2 Core . | . Reactor . | . Propulsion 4 | 4 Treads 2 | 2 Leg 2 | 2 Wheel . | . Hover . | . Flight . | . Utility 1 | 1 Device . | . Storage 1 | 1 Processor . | . Hackware . | . Protection . | . Artifact . | . Weapon 3 | 3 Energy Gun 3 | 3 Energy Cannon . | . Ballistic Gun . | . Ballistic Cannon . | . Launcher . | . Special Weapon . | . Impact Weapon . | . Slashing Weapon . | . Piercing Weapon . | . Special Melee Weapon . | . Unidentified Prototypes . | . Parts Lost 6 | 6 Power 1 | 1 Propulsion 3 | 3 Utility . | . Weapon 2 | 2 Highest Loss Streak 6 | 6 To Critical Strikes . | . Average Backups 3 | 3 Power . | . Propulsion 1 | 1 Utility . | . Weapon . | . Tool/Special . | . Unused Backups . | . Power . | . Propulsion . | . Utility . | . Weapon . | . Tool/Special . | . Average Slot Usage (%) . | . Peak Build Rating 6 | 6 Average Rating 5 | 5 On Entrance . | . Avg Prop Armor Cover (%) . | . Naked Turns . | . Heaviest Build 13 | 13 Greatest Support 40 | 40 Greatest Overweight (x) 3 | 3 Average Overweight (x) . | . Largest Inventory Capacity 8 | 8 Average Capacity 7 | 7 Most Carried 6 | 6 Average Carried 3 | 3 Final Capacity 8 | 8 Final Carried . | . Class Distribution -------------------- None Dominant Class ---------------- None Resources | -11 ----------- Run | Yrd Matter Collected 270 | 270 Remotely . | . Salvage Created 5 | 5 Parts . | . Haulers Intercepted . | . Recyclers Shooed . | . Parts Field Recycled . | . Retrieved Matter . | . Parts Self-Destructed . | . Prevented . | . Parts Restored . | . Kills | -11 ------- Run | Yrd Combat Hostiles Destroyed 1 | 1 Guns 1 | 1 Classes Destroyed 1 | 1 Assembled 1 | 1 Best Kill Streak 1 | 1 Combat Bots Only 1 | 1 Max Kills in Single Turn 1 | 1 Gunslinging . | . Exploded . | . Melee . | . Uniques/NPCs Destroyed . | . Combat | -11 -------- Run | Yrd Hostile Shots Fired 39 | 39 Missed 8 | 8 Hits 31 | 31 Melee 3 | 3 Projectile 28 | 28 AOE 17 | 17 Damage Taken 982 | 982 Core 251 | 251 Absorbed by Shields . | . Core Remaining (%) . | . Volleys Fired 14 | 14 Largest 2 | 2 Hottest 80 | 80 Shots Fired 16 | 16 Gun 16 | 16 Cannon . | . Launcher . | . Special . | . Kinetic . | . Thermal 14 | 14 Explosive . | . Electromagnetic 2 | 2 Robot Hit Streak 5 | 5 Robot Miss Streak 1 | 1 Penetration Max . | . Secondary Targets . | . Shots Hit Robots 11 | 11 Core Hits 6 | 6 Critical Kills . | . Critical Parts Destroyed . | . Critical Strikes . | . Melee Attacks . | . Impact . | . Slashing . | . Piercing . | . Sneak Attacks . | . Combat Hostiles . | . Follow-up Attacks . | . Damage Inflicted 124 | 124 Guns 124 | 124 Cannons . | . Explosions . | . Melee . | . Ramming . | . Kinetic . | . Thermal 112 | 112 Explosive . | . Electromagnetic 12 | 12 Impact . | . Slashing . | . Piercing . | . Highest Corruption 3 | 3 Average Corruption 3 | 3 Corruption Purged . | . Corruption Blocked . | . Overload Shots . | . Overflow Damage . | . Projectiles . | . Explosions . | . Melee . | . Knockbacks . | . Impact . | . Kinetic . | . Secondary . | . Self-Inflicted Damage . | . Shots . | . Rammed . | . Targets Rammed . | . Kicked . | . Crushed . | . Highest Temperature 60 | 60 Average Temperature 21 | 21 Received Heat Transfer 60 | 60 Siege Activations . | . Martial Activations . | . Shielding Activations . | . Robots Disrupted . | . Combat Hostiles . | . Robots Corrupted . | . Combat Hostiles . | . Parts Fried . | . Impact Corruptions . | . Robots Melted . | . Combat Hostiles . | . Parts Melted . | . Heat Transferred 250 | 250 Parts Sabotaged . | . Parts Stolen . | . Parts Stripped . | . Power Chain Reactions . | . Alert | -11 ------- Run | Yrd Maximum Alert Level . | . Low Security (%) 100 | 100 Level 1 . | . Level 2 . | . Level 3 . | . Level 4 . | . Level 5 . | . High Security . | . Max Security . | . Peak Influence . | . Initial . | . Average . | . Influence Increases . | . Influence Decreases . | . Squads Dispatched . | . Investigation . | . Extermination . | . Reinforcement . | . Assault . | . Garrison . | . Intercept . | . Searches Triggered . | . Construction Impeded . | . Haulers Reinforced . | . Active Scanning Responses . | . Cargo Convoy Interrupts . | . Stealth | -11 --------- Run | Yrd Distress Signals . | . Communications Jammed . | . Distress Signals . | . Times Spotted 21 | 21 Peak Tracking Total 13 | 13 Tactical Retreats 1 | 1 Traps | -11 ------- Run | Yrd Traps Triggered . | . Indirectly . | . Trap Hack Attempts . | . Triggered . | . Disarmed . | . Reprogrammed . | . Reused . | . Traps Extracted . | . Installed . | . Triggered . | . Machines | -11 ---------- Run | Yrd Machines Disabled . | . Max in Single Turn . | . Machines Repaired . | . Machines Dismantled . | . Machines Sabotaged . | . Overloaded Fab Kills . | . Hacking | -11 --------- Run | Yrd Machines Accessed . | . Terminals . | . Fabricators . | . Repair Stations . | . Recycling Units . | . Scanalyzers . | . Garrison Access . | . Total Hacks . | . Successful . | . Failed . | . Catastrophic . | . Database Lockouts . | . Manual . | . Terminals . | . Fabricators . | . Repair Stations . | . Recycling Units . | . Scanalyzers . | . Garrison Access . | . Terminal Hacks . | . Fabricator Hacks . | . Repair Station Hacks . | . Recycling Unit Hacks . | . Scanalyzer . | . Garrison Access Hacks . | . Unauthorized Hacks . | . Terminals . | . Fabricators . | . Repair Stations . | . Recycling Units . | . Scanalyzers . | . Garrison Access . | . Data Cores Recovered . | . Used . | . Hacking Detections . | . Full Trace Events . | . Feedback Events . | . Feedback Blocked . | . Robot Schematics Acquired . | . Robots Built . | . Authchips . | . Time . | . Total Robot Build Rating . | . Part Schematics Acquired . | . Parts Built . | . Authchips . | . Time . | . Total Part Build Rating . | . Part Studies Acquired . | . Parts Repaired . | . Time . | . Parts Recycled . | . Recycled Matter . | . Retrieved Matter . | . Retrieved Components . | . Parts Scanalyzed . | . Part Schematics Acquired . | . Parts Damaged . | . Bothacking | -11 ------------ Run | Yrd Used RIF Installer . | . Robots Hacked . | . Non-combat . | . Combat . | . Robot Hacks Applied . | . Relay Couplers Released . | . Fabnet Peak Effective % . | . Robots Rewired . | . Allies Hacked . | . Hacks Repelled . | . Allies | -11 -------- Run | Yrd Total Allies . | . Largest Group . | . Highest-Rated Group . | . Highest-Rated Ally . | . Total Orders . | . Ally Attacks . | . Total Damage . | . Kills . | . Allies Corrupted . | . Allies Melted . | . Intel | -11 ------- Run | Yrd Active Infowar (turns) . | . Robot Analysis Total . | . Derelict Logs Recovered . | . Drone Launches . | . Drone Recoveries . | . Exploration | -11 ------------- Run | Yrd Turns Passed 1977 | 1977 Spaces Moved 206 | 206 Core 17 | 17 Treads 9 | 9 Legs 180 | 180 Wheels . | . Hover . | . Flight . | . Fastest Speed 50 | 50 Average Speed 123 | 123 Slowest Speed 200 | 200 Overloaded Moves . | . Propulsion Burnouts . | . Robots Hopped . | . Potential Cave-ins . | . Cave-ins Triggered . | . Exploration Rate (%) 20 | 20 Regions Visited . Branch Regions . Pre-discovered Areas . | . Known Exits Taken . | . Unknown Exits Taken . | . Scrap Searched . | . Spaces Dug . | . Terrain Destroyed . | . Melee . | . Projectile . | . AOE . | . Terrain Rammed . | . Walls Destroyed . | . Machines Disabled . | . Actions | -11 --------- Run | Yrd Total 1913 | 1913 Wait 1671 | 1671 Move 206 | 206 Hop . | . Pick Up 10 | 10 Fast Attach . | . Attach 11 | 11 Detach 1 | 1 Swap . | . Drop . | . Fire 14 | 14 Melee . | . Ram . | . Kick . | . Crush . | . Escape Stasis . | . Rewire . | . Trap . | . Miscellaneous . | . Route ------- -11/Scrapyard (discovered 1 exit: [*Mat]) History --------- Turn | Location | Event 15 | -11/Scrapyard | Discovered new exit (range 16) 1894 | -11/Scrapyard | Assembled infested the area 1950 | -11/Scrapyard | Core integrity fell below 50% 1964 | -11/Scrapyard | Core integrity fell below 20% 1978 | -11/Scrapyard | Destroyed by as-86474 with Assembled Heavy Rifle Last Messages --------------- 01932_ D-53 Grenadier destroyed. 01933_ EM Pulse Gun destroyed. 01939_ The unstable cave ceiling collapses. 01939_ as-49520 destroyed. 01941_ The unstable cave ceiling collapses. 01941_ Sml. Laser destroyed. 01942_ The unstable cave ceiling collapses. 01949_ as-38483 destroyed. 01951_ The unstable cave ceiling collapses. 01951_ as-79564 destroyed. 01953_ as-77883 destroyed. 01953_ as-52082 destroyed. 01954_ The unstable cave ceiling collapses. 01962_ as-61712 suffers critical hit (Destroy). 01962_ as-61712 destroyed. 01965_ Lgt. Treads destroyed. 01965_ System corrupted by crushing effect (+3). 01966_ D-53 Grenadier shuts down. 01966_ D-53 Grenadier destroyed. 01973_ as-19644 destroyed. Map ----- +----------------------------------------------------+ | ???????????????????????????????????????????????? | | ???????????????????????????????????????????????? | | ??????????????????????? ???????????????????????? | | ??????????????????????# ???????????????????????? | | ?????????????########## ??????????????????????? | | ?????????????# ## ?########?????????????? | | ?????????????# ## ## ##????????????? | | ?????????????# ## # #????????????? | | ?????????????# ## # #????????????? | | ?????????????# ## # #????????????? | | ?????????????## # # #????????????? | | ???????????????# # # #????????????? | | ????????????????## % #????????????? | | ?????????????????## # #????????????? | | ???????#######??###### % ##???????????? | | ??????## ##?# ###?????????? | | ??????# ### # # # ###???????? | | ??????# # !% # #???????? | | ??????# # % = #???????? | | ####### # # # # # # #???????? | | # # # ########????? | | # # a # #????? | | #### # # a ##### #????? | | # # a####???# #????? | | # # # # #aa######## #????? | | # # # # # @ # #????? | | # ######### # # # #????? | | # # ? ######## # #????? | | # # ?? #?????????# ##????? | | # ########## # ???#?????????##########?????? | | # #????????# #?????????????????????????????? | | # #????????# #?????????????????????????????? | | #### #????????# #?????????????????????????????? | | #### ####?????# #?????????????????????????????? | | # #?????? #?????????????????????????????? | | # #?????? #?????????????????????????????? | | # ### ##? ??????????????????????????????? | | # ??????????????????????????? | | ??????????????????????????? | | % ### ### #??????????????????????????? | | # < #??? ?#??????????????????????????????? | | # #???? #???????????????????????????????? | | ##########?????#???????????????????????????????? | | ???????????????????????????????????????????????? | | ???????????????????????????????????????????????? | | ???????????????????????????????????????????????? | | ???????????????????????????????????????????????? | | ???????????????????????????????????????????????? | | ???????????????????????????????????????????????? | | ???????????????????????????????????????????????? | +----------------------------------------------------+ Best States ------------- Heat Dissipation 25 Energy Generation 10 Energy Capacity 250 Matter Stores 300 Matter Capacity 300 Sight Range 16 Terrain Scan Density 10 Evasion (%) 55 Recoil Reduction 2 Item Schematics ----------------- None Robot Schematics ------------------ None Fabricated ------------ Nothing Repaired ---------- Nothing Studied --------- None Alien Tech Used ----------------- None Achievements -------------- Curiosity Killed The Cat Challenges ------------ None Game ------ Seed PhysicsEnhancedSpecial Manual? 0 Play Time 00:06:30 Cumulative 5.8 hours Start 2026.07.07 @ 21:20:25 End 2026.07.07 @ 21:23:43 Sessions 0 Manual Loads 0 Difficulty Rogue Special Mode None Game No. 11 Rogue 10 Adventurer 1 Explorer 0 Win Type - Total 0 Types 0/0/0/0/0/0/0/0/0/0 Lore% 4 Gallery% 10 Achievement% 10 Wizard Run 0 Options --------- Layout 0 ASCII 0 Keyboard 0 Movement Mouse Keybinds 0 Fullscreen 2 Font 18/SmallcapsGlow Map View 38x25 Zoom Use 83% Tactical HUD 1 Map Filters NONE Filters NONE Steam 1 RUN: 446ef18b-0626-4730-925b-cfb0cfebd0ab